Cogmind - Beta 16.1 @@@ ROGUE MODE // 2026.03.06 @ 13:21:18 Player: justinkang1 Result: Destroyed by G-34 Mercenary with Small Laser Performance ------------- Evolutions (1) 500 Regions Visited (2) 400 Robots Destroyed (21) 105 Value Destroyed (468) 468 Prototype IDs (0) 0 Alien Tech Used (0) 0 Bonus (0) 0 TOTAL SCORE: 1473 Bonus ------- None Cogmind --------- Core Integrity 0/400 Matter 257/300 Energy 100/100 System Corruption 16% Temperature Cool (6) Movement Core (350) Ox6 Location -9/Materials Parts ------- > --- POWER (1) -------- (None) > --- PROPULSION (3) --- (None) > --- UTILITY (3) ------ Large Storage Unit > --- WEAPON (2) ------- (None) > --- INVENTORY (15) --- Ion Engine Light Ion Engine Aluminum Leg Structural Scanner Hacking Suite Light Assault Rifle Datajack Peak State ------------ > --- POWER ------------ Light Ion Engine > --- PROPULSION ------- Aluminum Leg Aluminum Leg > --- UTILITY ---------- Large Storage Unit Improved Terrain Scanner ECM Suite > --- WEAPON ----------- EM Pulse Gun Assault Rifle > --- INVENTORY -------- Ion Engine Light Ion Engine Aluminum Leg Compact Wheel Structural Scanner Hacking Suite Light Assault Rifle Hammer [Rating: 11] Favorites ----------- Power Light Ion Engine Engine Light Ion Engine Propulsion Aluminum Leg Leg Aluminum Leg Wheel Compact Wheel Utility Improved Terrain Scanner Device Improved Terrain Scanner Storage Small Storage Unit Weapon Assault Rifle Energy Gun EM Shotgun Ballistic Gun Assault Rifle Impact Weapon Hammer Build | -11 -10 -9 ------- Run | Yrd Mat Mat Slots Evolved 2 | . . 2 Power . | . . . Propulsion 1 | . . 1 Utility 1 | . . 1 Weapon . | . . . Parts Attached 17 | 8 6 3 Power 3 | 1 2 . Engine 3 | 1 2 . Core . | . . . Reactor . | . . . Propulsion 3 | 2 . 1 Treads . | . . . Leg 2 | 2 . . Wheel 1 | . . 1 Hover . | . . . Flight . | . . . Utility 6 | 3 2 1 Device 3 | 1 1 1 Storage 3 | 2 1 . Processor . | . . . Hackware . | . . . Protection . | . . . Artifact . | . . . Weapon 5 | 2 2 1 Energy Gun 3 | 1 1 1 Energy Cannon . | . . . Ballistic Gun 1 | 1 . . Ballistic Cannon . | . . . Launcher . | . . . Special Weapon . | . . . Impact Weapon 1 | . 1 . Slashing Weapon . | . . . Piercing Weapon . | . . . Special Melee Weapon . | . . . Unidentified Prototypes . | . . . Parts Lost 9 | . . 9 Power 1 | . . 1 Propulsion 3 | . . 3 Utility 2 | . . 2 Weapon 3 | . . 3 Highest Loss Streak 9 | . . 9 To Critical Strikes 1 | . . 1 Average Backups 7 | 2 7 7 Power 2 | 1 2 2 Propulsion 2 | . 2 1 Utility . | . . 1 Weapon 1 | . 1 1 Tool/Special . | . . . Unused Backups 10 | . 4 6 Power 4 | . 2 2 Propulsion 2 | . 1 1 Utility 1 | . . 1 Weapon 2 | . 1 1 Tool/Special 1 | . . 1 Average Slot Usage (%) 96 | . 100 76 Engine 13 | . 14 9 Leg 26 | . 28 16 Device 14 | . 14 18 Storage 13 | . 14 11 Energy Gun 10 | . 10 7 Ballistic Gun 13 | . 14 9 Impact Weapon 3 | . 3 3 Peak Build Rating 11 | 9 10 11 Average Rating 8 | 6 9 9 On Entrance 6 | . 9 9 Avg Prop Armor Cover (%) . | . . . Naked Turns . | . . . Heaviest Build 30 | 12 28 30 Greatest Support 20 | 20 20 20 Greatest Overweight (x) 7 | . 1 7 Average Overweight (x) . | . . 1 Largest Inventory Capacity 15 | 8 15 15 Average Capacity 9 | 7 8 15 Most Carried 9 | 5 8 9 Average Carried 7 | 2 7 7 Final Capacity 15 | 8 15 15 Final Carried 8 | 5 8 7 Class Distribution -------------------- 100% | Mutant Dominant Class ---------------- Mutant | -10/Materials Mutant | -9/Materials Resources | -11 -10 -9 ----------- Run | Yrd Mat Mat Matter Collected 595 | 329 247 19 Remotely . | . . . Salvage Created 815 | 144 626 45 Parts 48 | 13 32 3 Haulers Intercepted 2 | . 2 . Recyclers Shooed . | . . . Parts Field Recycled . | . . . Retrieved Matter . | . . . Parts Self-Destructed . | . . . Prevented . | . . . Parts Restored . | . . . Kills | -11 -10 -9 ------- Run | Yrd Mat Mat Combat Hostiles Destroyed 9 | . 9 . Melee 1 | . 1 . Guns 7 | . 7 . AOE 1 | . 1 . Classes Destroyed 7 | 2 3 2 Worker 1 | . . 1 Tunneler 4 | 4 . . Hauler 2 | . 2 . Recycler 2 | 1 1 . Operator 1 | . . 1 Watcher 2 | . 2 . Grunt 9 | . 9 . Best Kill Streak 3 | 3 2 1 Combat Bots Only 2 | . 2 . Max Kills in Single Turn 1 | 1 1 1 Gunslinging . | . . . Exploded 1 | . 1 . Melee 1 | . 1 . Uniques/NPCs Destroyed . | . . . Combat | -11 -10 -9 -------- Run | Yrd Mat Mat Hostile Shots Fired 129 | . 48 81 Missed 36 | . 17 19 Hits 93 | . 31 62 Melee 15 | . . 15 Projectile 78 | . 31 47 Critical Strikes 3 | . . 3 Damage Taken 1327 | . 428 899 Core 506 | . 98 408 Absorbed by Shields . | . . . Core Remaining (%) 80 | 100 60 . Volleys Fired 90 | 13 71 6 Largest 2 | 2 2 2 Hottest 65 | 60 65 60 Shots Fired 157 | 26 119 12 Gun 157 | 26 119 12 Cannon . | . . . Launcher . | . . . Special . | . . . Kinetic 90 | 13 71 6 Thermal 33 | 13 20 . Explosive . | . . . Electromagnetic 34 | . 28 6 Robot Hit Streak 14 | 4 14 3 Robot Miss Streak 4 | 1 4 4 Penetration Max . | . . . Secondary Targets . | . . . Shots Hit Robots 95 | 14 72 9 Core Hits 36 | 6 28 2 Critical Kills 1 | . . 1 Critical Parts Destroyed 1 | . 1 . Critical Strikes 2 | . 1 1 Destroy 1 | . . 1 Smash 1 | . 1 . Melee Attacks 10 | . 4 6 Impact 10 | . 4 6 Slashing . | . . . Piercing . | . . . Sneak Attacks 1 | . 1 . Combat Hostiles . | . . . Follow-up Attacks . | . . . Damage Inflicted 1341 | 176 980 185 Guns 1090 | 176 852 62 Cannons . | . . . Explosions 62 | . 36 26 Melee 188 | . 91 97 Ramming 1 | . 1 . Kinetic 545 | 69 444 32 Thermal 322 | 107 189 26 Explosive . | . . . Electromagnetic 285 | . 255 30 Impact 188 | . 91 97 Slashing . | . . . Piercing . | . . . Highest Corruption 16 | . 1 16 Average Corruption 1 | . 1 7 Corruption Purged . | . . . Corruption Blocked . | . . . Effects 4 | . 1 3 Message Errors 2 | . . 2 Matter Fused 1 | . 1 . Energy Discharges 1 | . . 1 Overload Shots . | . . . Overflow Damage 66 | . 66 . Projectiles . | . . . Explosions . | . . . Melee 66 | . 66 . Knockbacks 1 | . 1 . Impact 1 | . 1 . Kinetic . | . . . Secondary . | . . . Self-Inflicted Damage 35 | . 35 . Shots 1 | . 1 . Rammed . | . . . Targets Rammed 1 | . 1 . Kicked 1 | . 1 . Crushed . | . . . Highest Temperature 60 | . 60 3 Average Temperature 15 | . 15 3 Received Heat Transfer 504 | . 222 282 Siege Activations . | . . . Martial Activations . | . . . Shielding Activations . | . . . Robots Disrupted . | . . . Combat Hostiles . | . . . Robots Corrupted 1 | . 1 . Combat Hostiles . | . . . Parts Fried 1 | . 1 . Impact Corruptions 3 | . 3 . Robots Melted . | . . . Combat Hostiles . | . . . Parts Melted . | . . . Heat Transferred 700 | 250 400 50 Parts Sabotaged . | . . . Parts Stolen . | . . . Parts Stripped . | . . . Power Chain Reactions 2 | . 1 1 Alert | -11 -10 -9 ------- Run | Yrd Mat Mat Maximum Alert Level . | . . . Low Security (%) 100 | 100 100 100 Level 1 . | . . . Level 2 . | . . . Level 3 . | . . . Level 4 . | . . . Level 5 . | . . . High Security . | . . . Max Security . | . . . Peak Influence 68 | 10 68 24 Initial 8 | . . 8 Average 18 | . 23 4 Influence Increases 390 | 25 334 31 Destroy 0b10 Robot/C 180 | . 180 . Destroy 0b10 Robot/NC 60 | 25 25 10 Destroy Leader 58 | . 58 . Successful Hack 7 | . 5 2 Disable Machine 45 | . 30 15 Destroy Structure 10 | . 6 4 Lose Combat Pursuer 30 | . 30 . Influence Decreases 390 | 25 314 51 Entered New Map 12 | . . 12 Time Decay 374 | 25 314 35 Lost Part 4 | . . 4 Squads Dispatched 4 | . 2 2 Investigation . | . . . Extermination . | . . . Reinforcement 4 | . 2 2 Assault . | . . . Garrison . | . . . Intercept . | . . . Searches Triggered . | . . . Construction Impeded . | . . . Haulers Reinforced . | . . . Active Scanning Responses . | . . . Cargo Convoy Interrupts . | . . . Stealth | -11 -10 -9 --------- Run | Yrd Mat Mat Distress Signals 2 | . . 2 Communications Jammed . | . . . Distress Signals . | . . . Times Spotted 25 | . 17 8 Peak Tracking Total 5 | . 3 5 Tactical Retreats 2 | . 2 . Traps | -11 -10 -9 ------- Run | Yrd Mat Mat Traps Triggered 1 | . 1 . Indirectly . | . . . Trap Hack Attempts . | . . . Triggered . | . . . Disarmed . | . . . Reprogrammed . | . . . Reused . | . . . Traps Extracted . | . . . Installed . | . . . Triggered . | . . . Machines | -11 -10 -9 ---------- Run | Yrd Mat Mat Machines Disabled 4 | . 3 1 Max in Single Turn 1 | . 1 1 Machines Repaired . | . . . Machines Dismantled . | . . . Machines Sabotaged . | . . . Overloaded Fab Kills . | . . . Hacking | -11 -10 -9 --------- Run | Yrd Mat Mat Machines Accessed 3 | . 2 1 Terminals 3 | . 2 1 Fabricators . | . . . Repair Stations . | . . . Recycling Units . | . . . Scanalyzers . | . . . Garrison Access . | . . . Total Hacks 7 | . 5 2 Successful 6 | . 4 2 Failed 1 | . 1 . Catastrophic . | . . . Database Lockouts . | . . . Manual 2 | . 2 . Terminals 7 | . 5 2 Fabricators . | . . . Repair Stations . | . . . Recycling Units . | . . . Scanalyzers . | . . . Garrison Access . | . . . Terminal Hacks 6 | . 4 2 Record 2 | . 1 1 Maintenance Status 1 | . 1 . Hauler Manifests 2 | . 2 . Zone Layout 1 | . . 1 Fabricator Hacks . | . . . Repair Station Hacks . | . . . Recycling Unit Hacks . | . . . Scanalyzer . | . . . Garrison Access Hacks . | . . . Unauthorized Hacks . | . . . Terminals . | . . . Fabricators . | . . . Repair Stations . | . . . Recycling Units . | . . . Scanalyzers . | . . . Garrison Access . | . . . Data Cores Recovered . | . . . Used . | . . . Hacking Detections 2 | . 1 1 Full Trace Events . | . . . Feedback Events . | . . . Feedback Blocked . | . . . Robot Schematics Acquired . | . . . Robots Built . | . . . Authchips . | . . . Time . | . . . Total Robot Build Rating . | . . . Part Schematics Acquired . | . . . Parts Built . | . . . Authchips . | . . . Time . | . . . Total Part Build Rating . | . . . Part Studies Acquired . | . . . Parts Repaired . | . . . Time . | . . . Parts Recycled . | . . . Recycled Matter . | . . . Retrieved Matter . | . . . Retrieved Components . | . . . Parts Scanalyzed . | . . . Part Schematics Acquired . | . . . Parts Damaged . | . . . Bothacking | -11 -10 -9 ------------ Run | Yrd Mat Mat Used RIF Installer . | . . . Robots Hacked . | . . . Non-combat . | . . . Combat . | . . . Robot Hacks Applied . | . . . Relay Couplers Released . | . . . Fabnet Peak Effective % . | . . . Robots Rewired . | . . . Allies Hacked . | . . . Hacks Repelled . | . . . Allies | -11 -10 -9 -------- Run | Yrd Mat Mat Total Allies . | . . . Largest Group . | . . . Highest-Rated Group . | . . . Highest-Rated Ally . | . . . Total Orders . | . . . Ally Attacks . | . . . Total Damage . | . . . Kills . | . . . Allies Corrupted . | . . . Allies Melted . | . . . Intel | -11 -10 -9 ------- Run | Yrd Mat Mat Active Infowar (turns) 1417 | 57 1185 175 Terrain 1306 | 57 1074 175 Structural 111 | . 111 . ECM 159 | . . 159 Robot Analysis Total . | . . . Derelict Logs Recovered . | . . . Drone Launches . | . . . Drone Recoveries . | . . . Exploration | -11 -10 -9 ------------- Run | Yrd Mat Mat Turns Passed 1580 | 189 1186 205 Spaces Moved 892 | 111 700 81 Core 5 | 3 . 2 Treads . | . . . Legs 877 | 108 700 69 Wheels 10 | . . 10 Hover . | . . . Flight . | . . . Fastest Speed 50 | 50 120 115 Average Speed 129 | 118 123 189 Slowest Speed 400 | 120 190 400 Overloaded Moves . | . . . Propulsion Burnouts . | . . . Robots Hopped . | . . . Potential Cave-ins . | . . . Cave-ins Triggered . | . . . Exploration Rate (%) 34 | 7 82 13 Regions Visited 2 Branch Regions . Pre-discovered Areas . | . . . Known Exits Taken . | . . . Unknown Exits Taken 2 | 1 1 . Scrap Searched . | . . . Spaces Dug . | . . . Terrain Destroyed 8 | . 4 4 Melee . | . . . Projectile . | . . . AOE 8 | . 4 4 Terrain Rammed . | . . . Walls Destroyed . | . . . Machines Disabled . | . . . Actions | -11 -10 -9 --------- Run | Yrd Mat Mat Total 1148 | 140 898 110 Wait 100 | . 91 9 Move 890 | 110 699 81 Hop . | . . . Pick Up 20 | 5 12 3 Fast Attach 10 | 8 2 . Attach 4 | 1 . 3 Detach 3 | 2 1 . Swap 7 | . 6 1 Drop 13 | 1 11 1 Fire 90 | 13 71 6 Melee 10 | . 4 6 Ram . | . . . Kick 1 | . 1 . Crush . | . . . Escape Stasis . | . . . Rewire . | . . . Trap . | . . . Miscellaneous . | . . . Route ------- -11/Scrapyard -10/Materials (discovered 5 exits: *Mat x3 / [*Min x2]) -9/Materials History --------- Turn | Location | Event 9 | -11/Scrapyard | Discovered new exit (range 16) 190 | -11/Scrapyard | Entered Materials 219 | -10/Materials | Discovered new exit (range 15) 305 | -10/Materials | Build established: Mutant 490 | -10/Materials | Discovered new exit (range 16) 627 | -10/Materials | Discovered new exit (range 10) 778 | -10/Materials | Discovered new exit (range 12) 968 | -10/Materials | Discovered new exit (range 14) 1376 | -10/Materials | Entered another Materials area 1376 | -9/Materials | Evolved 2 slots: Propulsion x1, Utility x1 1555 | -9/Materials | System corruption reached 10% 1569 | -9/Materials | Core integrity fell below 50% 1579 | -9/Materials | Core integrity fell below 20% 1581 | -9/Materials | Destroyed by G-34 Mercenary with Small Laser Last Messages --------------- 01538_ Aluminum Leg destroyed. 01539_ Dropped Com. Wheel. 01540_ Acquired Com. Wheel. 01549_ W-16 Scout sends out distress signal. 01551_ Imp. Terrain Scanner destroyed. 01551_ System corrupted by crushing effect (+3). 01551_ Knocked back. 01553_ Assault Rifle destroyed. 01554_ Lgt. Ion Engine destroyed. 01554_ System corrupted by crushing effect (+5). [Achievement: System Compromised] 01555_ Y2KZKAG=58 IRKGU4ZKRLGD5IR4ZO> 8R 01562_ Critical hit (Smash). 01562_ Com. Wheel destroyed. 01562_ System corrupted by crushing effect (+1). 01562_ Knocked back. 01571_ Hammer destroyed. 01571_ System corrupted by crushing effect (+3). 01573_ 7EU=NIPMLF%CPX O% NKGYRO1HEMXEMFM2FEQ 01579_ Knocked back. Map ----- +----------------------------------------------------+ | ?????????????????????????????????????????????? " | | ?????????????????????????????????????????????? | | ?????????????????????????????????????????????? | | ??????????????????????????????????????????????##?# | | ???????????????????????????????????????????????# # | | ??????????????????????????????????????????????##?# | | ?????????????????????????????????????????????? | | ?????????????????????????????????????????????? | | ????????????????????????????????????????? ???""" | | ?????????????????????????????????????? ? ???""" | | ?????????????????????? ??????????????" ???""" | | ???????????????????? ???????????? %T # ? | | ??????????????????? ??????????????" #??#### | | ???????????????????" g ???????????? ? "???#?? | | ?????????????????""" ??????#??? """ T"????? | | ????????????????"""" t ??????????? """ "?????? | | ????????????????? ???? ???????""" #?????? | | ????????????????? #???????????? #?##??? | | ??????????????? """"g T?????##?????? #???##? | | ????????????# """" #?????????????# ##???## | | ????????????# """" ############### #??#??? | | ??????????### g a o ##????? | | ?????????? ####### | | ????????? [ u | | ????????? u u g | | ?????????# @ b | | ?????????# ##################+######## | | ?????????# ??#??????????????? ? ?#?? | | ?????????? ?????????????????? ???? | | ?????????? ??????????????????# """"" ?? | | ??????????? ???????????"????????# """"" ##? | | ??????????? ??????????????????????# """"" #?? | | ?????????????????????#?????????????# #?? | | ???????????????????????????? ???? ?#? #?? | | ????????????????????? ?????????? ?????##########?? | | ?????????????????????????#??????????#????????????? | | ????????????????"????????????????????#??????? #??? | | ?????????????????????????????????????????????????? | | ??????????????????? ????????????????????????????#? | | ???????????????????????????????????????????????#?? | | ?????????????????????????????????????????????????? | | ?????????????????????????????????????????????????? | | ?????????????????????????????????????????????????? | | ?????????????????????????????????????????????????? | | ?????????????????????????????????????????????????? | | ?????????????????????????????????????????????????? | | ?????????????????????????????????????????????????? | | ?????????????????????????????????????????????????? | | ?????????????????????????????????????????????????? | | ?????????????????????????????????????????????????? | +----------------------------------------------------+ Best States ------------- Heat Dissipation 28 Energy Generation 10 Energy Capacity 125 Matter Stores 300 Matter Capacity 300 Sight Range 16 Terrain Scan Range 16 Terrain Scan Density 10 ECM Strength 1 Evasion (%) 55 Item Schematics ----------------- None Robot Schematics ------------------ None Fabricated ------------ Nothing Repaired ---------- Nothing Studied --------- None Alien Tech Used ----------------- None Achievements -------------- System Compromised Challenges ------------ None Game ------ Seed CompactMyomerBallwheel Manual? 0 Play Time 00:30:53 Cumulative 9.2 hours Start 2026.02.16 @ 13:38:51 End 2026.03.06 @ 13:21:18 Sessions 5 Manual Loads 0 Difficulty Rogue Special Mode None Game No. 20 Rogue 19 Adventurer 1 Explorer 0 Win Type - Total 0 Types 0/0/0/0/0/0/0/0/0/0 Lore% 1 Gallery% 12 Achievement% 10 Wizard Run 0 Options --------- Layout 0 ASCII 0 Keyboard 1 Movement Vi Keybinds 1 Fullscreen 1 Font 18/SmallcapsGlow Map View 76x50 Zoom Use 0% Tactical HUD 1 Map Filters NONE Filters NONE Steam 1 RUN: 5c1f75df-f775-4797-856c-f83313bac4dc